[Event "*** Titled Tuesday Blitz"]
[Site "Chess.com"]
[Date "2020.05.12"]
[Round "9"]
[White "AryanTari"]
[Black "PavelShkapenko"]
[Result "1-0"]
[WhiteElo "2908"]
[BlackElo "2644"]
[TimeControl "180+1"]
[EndTime "11:44:28 PDT"]
[Termination "AryanTari won by resignation"]

1. d4 {[%clk 0:03:00.9]} 1... Nf6 {[%clk 0:02:59.5]} 2. Bf4 {[%clk 0:03:01.1]}
2... e6 {[%clk 0:02:57.6]} 3. Nf3 {[%clk 0:03:00.3]} 3... c5 {[%clk 0:02:57.2]}
4. e3 {[%clk 0:02:59.5]} 4... b6 {[%clk 0:02:55.5]} 5. h3 {[%clk 0:02:58.4]}
5... Bb7 {[%clk 0:02:54.9]} 6. Be2 {[%clk 0:02:58.4]} 6... Be7 {[%clk
0:02:54.6]} 7. O-O {[%clk 0:02:58.2]} 7... O-O {[%clk 0:02:55.1]} 8. c3 {[%clk
0:02:51.7]} 8... cxd4 {[%clk 0:02:55.1]} 9. exd4 {[%clk 0:02:51.5]} 9... d6
{[%clk 0:02:55.3]} 10. a4 {[%clk 0:02:49.9]} 10... a6 {[%clk 0:02:55.2]} 11. Bh2
{[%clk 0:02:48]} 11... Nbd7 {[%clk 0:02:55.4]} 12. Nbd2 {[%clk 0:02:46.8]} 12...
Re8 {[%clk 0:02:55.9]} 13. Re1 {[%clk 0:02:37.2]} 13... Bf8 {[%clk 0:02:55.3]}
14. Qb3 {[%clk 0:02:23.1]} 14... Qc7 {[%clk 0:02:54.1]} 15. Qa3 {[%clk
0:02:06.4]} 15... Rac8 {[%clk 0:02:47.3]} 16. Rac1 {[%clk 0:01:52]} 16... e5
{[%clk 0:02:34.4]} 17. Qb3 {[%clk 0:01:50.7]} 17... e4 {[%clk 0:02:28.2]} 18.
Ng5 {[%clk 0:01:47.9]} 18... Re7 {[%clk 0:02:15.5]} 19. Bc4 {[%clk 0:01:20.9]}
19... Nb8 {[%clk 0:01:19.3]} 20. f3 {[%clk 0:01:10.9]} 20... e3 {[%clk
0:01:11.3]} 21. Bxf7+ {[%clk 0:00:55.7]} 21... Rxf7 {[%clk 0:01:09.6]} 22. Rxe3
{[%clk 0:00:30.7]} 22... h6 {[%clk 0:01:09.1]} 23. Nxf7 {[%clk 0:00:18.2]} 23...
Qxf7 {[%clk 0:01:08.5]} 24. Qxf7+ {[%clk 0:00:18.3]} 24... Kxf7 {[%clk
0:01:08.1]} 25. Ne4 {[%clk 0:00:19.1]} 25... Rd8 {[%clk 0:00:58.5]} 26. c4
{[%clk 0:00:16.9]} 26... Nc6 {[%clk 0:00:55.6]} 27. d5 {[%clk 0:00:17.2]} 27...
Nb4 {[%clk 0:00:40.3]} 28. Nxf6 {[%clk 0:00:11.9]} 28... gxf6 {[%clk 0:00:40.4]}
29. Bf4 {[%clk 0:00:09.2]} 29... a5 {[%clk 0:00:39.2]} 30. Rb3 {[%clk
0:00:06.4]} 30... Rc8 {[%clk 0:00:33.1]} 31. Bd2 {[%clk 0:00:07]} 31... Be7
{[%clk 0:00:26.5]} 32. Bxb4 {[%clk 0:00:06.9]} 32... axb4 {[%clk 0:00:26.8]} 33.
Rxb4 {[%clk 0:00:07.8]} 33... Bd8 {[%clk 0:00:27.2]} 34. a5 {[%clk 0:00:08.4]}
34... Bxd5 {[%clk 0:00:24.5]} 35. axb6 {[%clk 0:00:06.5]} 35... Bb7 {[%clk
0:00:24.9]} 36. Kf2 {[%clk 0:00:04.4]} 36... Rc6 {[%clk 0:00:24.8]} 37. Ke2
{[%clk 0:00:04.1]} 37... Rxb6 {[%clk 0:00:22.6]} 38. Rxb6 {[%clk 0:00:04.1]}
38... Bxb6 {[%clk 0:00:23.3]} 39. b4 {[%clk 0:00:05]} 39... Ke6 {[%clk
0:00:21.3]} 40. c5 {[%clk 0:00:04.2]} 40... dxc5 {[%clk 0:00:21]} 41. bxc5
{[%clk 0:00:05.1]} 41... Bc7 {[%clk 0:00:21.3]} 42. Ke3 {[%clk 0:00:05.2]} 42...
Kd5 {[%clk 0:00:20.5]} 43. Rd1+ {[%clk 0:00:05.8]} 43... Kxc5 {[%clk 0:00:20.1]}
44. Rd7 {[%clk 0:00:06.5]} 44... Kc6 {[%clk 0:00:20]} 45. Rh7 {[%clk 0:00:07]}
45... Ba6 {[%clk 0:00:18.4]} 46. Rxh6 {[%clk 0:00:06.2]} 46... Bf1 {[%clk
0:00:19]} 47. Rxf6+ {[%clk 0:00:05.6]} 47... Kd7 {[%clk 0:00:19.2]} 48. Kf2
{[%clk 0:00:04.9]} 48... Bd3 {[%clk 0:00:18.3]} 49. h4 {[%clk 0:00:05]} 49...
Be5 {[%clk 0:00:17.5]} 50. Rf8 {[%clk 0:00:04.3]} 50... Ke7 {[%clk 0:00:17.2]}
51. Rc8 {[%clk 0:00:03.8]} 51... Bf6 {[%clk 0:00:16.9]} 52. g3 {[%clk
0:00:03.8]} 52... Bf5 {[%clk 0:00:16.4]} 53. Rc1 {[%clk 0:00:04.3]} 53... Bd4+
{[%clk 0:00:15.9]} 54. Kg2 {[%clk 0:00:04.8]} 54... Kf7 {[%clk 0:00:16.1]} 55.
Re1 {[%clk 0:00:05.5]} 55... Bf6 {[%clk 0:00:16.1]} 56. Rd1 {[%clk 0:00:05.9]}
56... Bc2 {[%clk 0:00:15.7]} 57. Rh1 {[%clk 0:00:06.3]} 57... Kg6 {[%clk
0:00:15.6]} 58. g4 {[%clk 0:00:06.8]} 58... Be5 {[%clk 0:00:15.8]} 59. Re1
{[%clk 0:00:06.6]} 59... Bf6 {[%clk 0:00:14.6]} 60. Re6 {[%clk 0:00:07]} 60...
Kf7 {[%clk 0:00:14.8]} 61. Rc6 {[%clk 0:00:07.6]} 61... Ba4 {[%clk 0:00:15.2]}
62. Ra6 {[%clk 0:00:07.9]} 62... Bb5 {[%clk 0:00:15.2]} 63. Ra7+ {[%clk
0:00:08.5]} 63... Kg6 {[%clk 0:00:14.7]} 64. Kg3 {[%clk 0:00:09.1]} 64... Be5+
{[%clk 0:00:14.6]} 65. f4 {[%clk 0:00:09.4]} 65... Bd4 {[%clk 0:00:14.9]} 66.
Rb7 {[%clk 0:00:08]} 66... Bd3 {[%clk 0:00:14.1]} 67. Rd7 {[%clk 0:00:07.7]} 1-0

[Event "*** Titled Tuesday Blitz"]
[Site "Chess.com"]
[Date "2020.05.12"]
[Round "9"]
[White "14Sokol88"]
[Black "Richarzard69"]
[Result "1-0"]
[WhiteElo "2386"]
[BlackElo "2276"]
[TimeControl "180+1"]
[EndTime "11:44:28 PDT"]
[Termination "14Sokol88 won by checkmate"]

1. e4 {[%clk 0:03:00.9]} 1... e6 {[%clk 0:02:59.3]} 2. d4 {[%clk 0:02:59.3]}
2... d5 {[%clk 0:02:59.8]} 3. Nd2 {[%clk 0:02:58.2]} 3... c5 {[%clk 0:02:59.4]}
4. exd5 {[%clk 0:02:57.2]} 4... Qxd5 {[%clk 0:03:00.3]} 5. Ngf3 {[%clk
0:02:55.9]} 5... cxd4 {[%clk 0:03:00.6]} 6. Bc4 {[%clk 0:02:55.7]} 6... Qd6
{[%clk 0:03:01.1]} 7. O-O {[%clk 0:02:55.5]} 7... Nf6 {[%clk 0:03:01.7]} 8. Nb3
{[%clk 0:02:53.9]} 8... Nc6 {[%clk 0:03:02.3]} 9. Nbxd4 {[%clk 0:02:53]} 9...
Nxd4 {[%clk 0:03:03.2]} 10. Qxd4 {[%clk 0:02:52.8]} 10... a6 {[%clk 0:03:00.5]}
11. Bf4 {[%clk 0:02:44.8]} 11... Qxd4 {[%clk 0:02:55.3]} 12. Nxd4 {[%clk
0:02:45.7]} 12... Bc5 {[%clk 0:02:54.1]} 13. Nb3 {[%clk 0:02:43.8]} 13... Be7
{[%clk 0:02:51.4]} 14. Be2 {[%clk 0:02:39.9]} 14... O-O {[%clk 0:02:34.5]} 15.
Bf3 {[%clk 0:02:39.2]} 15... Nd5 {[%clk 0:02:18.9]} 16. Bxd5 {[%clk 0:02:36]}
16... exd5 {[%clk 0:02:19.8]} 17. Rfe1 {[%clk 0:02:33.2]} 17... Be6 {[%clk
0:01:55.7]} 18. Nd4 {[%clk 0:02:31]} 18... Bf6 {[%clk 0:01:55.5]} 19. Be5 {[%clk
0:02:29.6]} 19... Be7 {[%clk 0:01:31.7]} 20. Re3 {[%clk 0:01:47]} 20... Bc5
{[%clk 0:01:23.2]} 21. c3 {[%clk 0:01:44.3]} 21... f6 {[%clk 0:00:54.9]} 22.
Nxe6 {[%clk 0:01:21.2]} 22... Bxe3 {[%clk 0:00:54]} 23. Nxf8 {[%clk 0:01:19.8]}
23... Rxf8 {[%clk 0:00:35.9]} 24. fxe3 {[%clk 0:01:04.8]} 24... fxe5 {[%clk
0:00:35.5]} 25. Rd1 {[%clk 0:01:05.2]} 25... Rd8 {[%clk 0:00:34.6]} 26. c4
{[%clk 0:01:04.9]} 26... d4 {[%clk 0:00:34.6]} 27. exd4 {[%clk 0:01:04.4]} 27...
exd4 {[%clk 0:00:34.5]} 28. Kf2 {[%clk 0:01:04.7]} 28... Kf7 {[%clk 0:00:34.7]}
29. Kf3 {[%clk 0:01:04.4]} 29... b5 {[%clk 0:00:21.6]} 30. cxb5 {[%clk
0:01:02.9]} 30... axb5 {[%clk 0:00:22.5]} 31. Rd2 {[%clk 0:00:58.7]} 31... Ke6
{[%clk 0:00:19.1]} 32. Ke4 {[%clk 0:00:58.5]} 32... Rc8 {[%clk 0:00:11.9]} 33.
Kxd4 {[%clk 0:00:55.4]} 33... Rc4+ {[%clk 0:00:11.5]} 34. Ke3 {[%clk 0:00:54.8]}
34... Ra4 {[%clk 0:00:12.1]} 35. a3 {[%clk 0:00:50.7]} 35... Rh4 {[%clk
0:00:12.4]} 36. g3 {[%clk 0:00:48.3]} 36... Rh5 {[%clk 0:00:11.2]} 37. Rd4
{[%clk 0:00:47.4]} 37... Rxh2 {[%clk 0:00:10]} 38. Rb4 {[%clk 0:00:45.8]} 38...
Rh5 {[%clk 0:00:09.5]} 39. Rg4 {[%clk 0:00:22.2]} 39... g6 {[%clk 0:00:09.6]}
40. Kd3 {[%clk 0:00:21.9]} 40... Kd6 {[%clk 0:00:09.7]} 41. Kc3 {[%clk
0:00:21.7]} 41... Kc5 {[%clk 0:00:09.9]} 42. Re4 {[%clk 0:00:15.5]} 42... Kb6
{[%clk 0:00:09.3]} 43. Kb4 {[%clk 0:00:14.5]} 43... Rg5 {[%clk 0:00:08.7]} 44.
Re6+ {[%clk 0:00:14.2]} 44... Kb7 {[%clk 0:00:07.3]} 45. Re7+ {[%clk 0:00:14.6]}
45... Kb6 {[%clk 0:00:07.6]} 46. Rxh7 {[%clk 0:00:15.1]} 46... Rg4+ {[%clk
0:00:07.9]} 47. Kb3 {[%clk 0:00:11.5]} 47... Rxg3+ {[%clk 0:00:08.8]} 48. Ka2
{[%clk 0:00:12]} 48... g5 {[%clk 0:00:07.5]} 49. Rg7 {[%clk 0:00:12.1]} 49... g4
{[%clk 0:00:07.5]} 50. Rg5 {[%clk 0:00:11.8]} 50... Rg2 {[%clk 0:00:07.7]} 51.
Kb3 {[%clk 0:00:11.7]} 51... Kc6 {[%clk 0:00:06.6]} 52. Kc3 {[%clk 0:00:11.3]}
52... Kb6 {[%clk 0:00:06.9]} 53. b3 {[%clk 0:00:11.1]} 53... Kc6 {[%clk
0:00:06.6]} 54. Kb4 {[%clk 0:00:10.8]} 54... Rg3 {[%clk 0:00:06.6]} 55. Rg6+
{[%clk 0:00:10.5]} 55... Kc7 {[%clk 0:00:05.9]} 56. Rg5 {[%clk 0:00:09.7]} 56...
Kc6 {[%clk 0:00:06.2]} 57. Rc5+ {[%clk 0:00:09.4]} 57... Kb6 {[%clk 0:00:02.2]}
58. Rxb5+ {[%clk 0:00:09.9]} 58... Ka6 {[%clk 0:00:03.1]} 59. Rg5 {[%clk
0:00:10.2]} 59... Kb6 {[%clk 0:00:04]} 60. Rg6+ {[%clk 0:00:09.9]} 60... Kb7
{[%clk 0:00:04.9]} 61. a4 {[%clk 0:00:09.8]} 61... Rg1 {[%clk 0:00:05.8]} 62. a5
{[%clk 0:00:09.3]} 62... g3 {[%clk 0:00:06.7]} 63. Kb5 {[%clk 0:00:09.3]} 63...
Ka7 {[%clk 0:00:07.5]} 64. Rg7+ {[%clk 0:00:09]} 64... Ka8 {[%clk 0:00:07.2]}
65. Kb6 {[%clk 0:00:08.5]} 65... g2 {[%clk 0:00:05.8]} 66. Rg8# {[%clk
0:00:08.8]} 1-0

[Event "*** Titled Tuesday Blitz"]
[Site "Chess.com"]
[Date "2020.05.12"]
[Round "9"]
[White "DanilNajdin"]
[Black "UmutErdemGunduz"]
[Result "0-1"]
[WhiteElo "2283"]
[BlackElo "2397"]
[TimeControl "180+1"]
[EndTime "11:44:31 PDT"]
[Termination "UmutErdemGunduz won on time"]

1. d4 {[%clk 0:03:00.9]} 1... Nf6 {[%clk 0:02:56.8]} 2. c4 {[%clk 0:03:00.8]}
2... e6 {[%clk 0:02:56.5]} 3. Nc3 {[%clk 0:02:59.5]} 3... c5 {[%clk 0:02:53.6]}
4. d5 {[%clk 0:02:58.7]} 4... exd5 {[%clk 0:02:54.5]} 5. cxd5 {[%clk 0:02:58.6]}
5... d6 {[%clk 0:02:55]} 6. e4 {[%clk 0:02:58.5]} 6... g6 {[%clk 0:02:55]} 7. h3
{[%clk 0:02:58.8]} 7... Bg7 {[%clk 0:02:55.1]} 8. Nf3 {[%clk 0:02:59.3]} 8...
O-O {[%clk 0:02:55.7]} 9. Bd3 {[%clk 0:02:59.7]} 9... b5 {[%clk 0:02:56.3]} 10.
Bxb5 {[%clk 0:02:56.8]} 10... Nxe4 {[%clk 0:02:52.2]} 11. Nxe4 {[%clk
0:02:56.9]} 11... Qa5+ {[%clk 0:02:52.4]} 12. Nfd2 {[%clk 0:02:57.5]} 12... Qxb5
{[%clk 0:02:52]} 13. Nxd6 {[%clk 0:02:58.2]} 13... Qa6 {[%clk 0:02:52]} 14. N2c4
{[%clk 0:02:58.4]} 14... Nd7 {[%clk 0:02:51.7]} 15. O-O {[%clk 0:02:56.2]} 15...
Nb6 {[%clk 0:02:49.2]} 16. Nxb6 {[%clk 0:02:55.5]} 16... axb6 {[%clk 0:02:50.1]}
17. Nxc8 {[%clk 0:02:55.6]} 17... Raxc8 {[%clk 0:02:47.9]} 18. Re1 {[%clk
0:02:29.7]} 18... Rfd8 {[%clk 0:02:46.2]} 19. Bg5 {[%clk 0:02:28.4]} 19... Rd7
{[%clk 0:02:46.5]} 20. Qd2 {[%clk 0:02:19.5]} 20... Bd4 {[%clk 0:02:43.7]} 21.
Qf4 {[%clk 0:01:55.8]} 21... Rxd5 {[%clk 0:02:30.8]} 22. Bh4 {[%clk 0:01:06.8]}
22... Bxb2 {[%clk 0:02:20]} 23. Rad1 {[%clk 0:01:06.4]} 23... Qxa2 {[%clk
0:01:59]} 24. Rd2 {[%clk 0:00:52.5]} 24... Rxd2 {[%clk 0:01:31.7]} 25. Qxd2
{[%clk 0:00:52.3]} 25... Qa3 {[%clk 0:01:22.9]} 26. Bd8 {[%clk 0:00:48.3]} 26...
Bc3 {[%clk 0:00:47.4]} 27. Re8+ {[%clk 0:00:47.5]} 27... Kg7 {[%clk 0:00:47.4]}
28. Qd6 {[%clk 0:00:42.2]} 28... Rxd8 {[%clk 0:00:30.5]} 29. Rxd8 {[%clk
0:00:41.5]} 29... Qa1+ {[%clk 0:00:29.3]} 30. Qd1 {[%clk 0:00:39.7]} 30... Qxd1+
{[%clk 0:00:26.9]} 31. Rxd1 {[%clk 0:00:40.2]} 31... b5 {[%clk 0:00:27.1]} 32.
Kf1 {[%clk 0:00:40.7]} 32... Kf6 {[%clk 0:00:24.8]} 33. Ke2 {[%clk 0:00:41.1]}
33... Ke6 {[%clk 0:00:22.9]} 34. Kd3 {[%clk 0:00:40.1]} 34... Bd4 {[%clk
0:00:23]} 35. Rb1 {[%clk 0:00:39.7]} 35... b4 {[%clk 0:00:20.3]} 36. f3 {[%clk
0:00:39.6]} 36... Kd5 {[%clk 0:00:19.9]} 37. Rc1 {[%clk 0:00:36.4]} 37... b3
{[%clk 0:00:20]} 38. h4 {[%clk 0:00:26.2]} 38... b2 {[%clk 0:00:18.1]} 39. Rd1
{[%clk 0:00:24.6]} 39... c4+ {[%clk 0:00:17.2]} 40. Kc2 {[%clk 0:00:24.8]} 40...
Kc5 {[%clk 0:00:16.6]} 41. h5 {[%clk 0:00:22.7]} 41... c3 {[%clk 0:00:12.7]} 42.
hxg6 {[%clk 0:00:19.9]} 42... hxg6 {[%clk 0:00:13.6]} 43. Rh1 {[%clk 0:00:19.7]}
43... Kd6 {[%clk 0:00:09.9]} 44. Rd1 {[%clk 0:00:18.4]} 44... Ke5 {[%clk
0:00:10.1]} 45. Re1+ {[%clk 0:00:16.5]} 45... Kf5 {[%clk 0:00:09.8]} 46. Re4
{[%clk 0:00:15.3]} 46... Be5 {[%clk 0:00:08.1]} 47. g4+ {[%clk 0:00:14]} 47...
Kf6 {[%clk 0:00:07.8]} 48. f4 {[%clk 0:00:14.3]} 48... Bd6 {[%clk 0:00:05.2]}
49. Rd4 {[%clk 0:00:14.4]} 49... Ke6 {[%clk 0:00:03.2]} 50. Re4+ {[%clk
0:00:09.2]} 50... Kd5 {[%clk 0:00:03.4]} 51. Ra4 {[%clk 0:00:07.5]} 51... Bc5
{[%clk 0:00:03.6]} 52. f5 {[%clk 0:00:05.9]} 52... Bd4 {[%clk 0:00:04.5]} 53.
fxg6 {[%clk 0:00:04.4]} 53... fxg6 {[%clk 0:00:05.4]} 54. Ra6 {[%clk 0:00:04.1]}
54... g5 {[%clk 0:00:05.7]} 55. Ra8 {[%clk 0:00:03.5]} 55... Be3 {[%clk
0:00:05.6]} 56. Rd8+ {[%clk 0:00:02.8]} 56... Ke4 {[%clk 0:00:05.6]} 57. Rf8
{[%clk 0:00:02.7]} 57... Bf4 {[%clk 0:00:05.6]} 58. Rf7 {[%clk 0:00:01.3]} 58...
Kf3 {[%clk 0:00:05.9]} 59. Rb7 {[%clk 0:00:01.7]} 59... Kxg4 {[%clk 0:00:06.8]}
60. Kxc3 {[%clk 0:00:02]} 60... Bc1 {[%clk 0:00:07.4]} 61. Kc2 {[%clk
0:00:01.9]} 61... Kg3 {[%clk 0:00:07.6]} 0-1

[Event "*** Titled Tuesday Blitz"]
[Site "Chess.com"]
[Date "2020.05.12"]
[Round "9"]
[White "calin_dragomirescu"]
[Black "SergioGarciaFuentes"]
[Result "1/2-1/2"]
[WhiteElo "2284"]
[BlackElo "2161"]
[TimeControl "180+1"]
[EndTime "11:44:31 PDT"]
[Termination "Game drawn by repetition"]

1. Nf3 {[%clk 0:02:59]} 1... d5 {[%clk 0:02:58]} 2. c4 {[%clk 0:02:58.5]} 2...
c6 {[%clk 0:02:57]} 3. d4 {[%clk 0:02:57.5]} 3... Nf6 {[%clk 0:02:56]} 4. Nc3
{[%clk 0:02:57.6]} 4... a6 {[%clk 0:02:56]} 5. e3 {[%clk 0:02:57]} 5... b5
{[%clk 0:02:55.2]} 6. c5 {[%clk 0:02:56.9]} 6... Nbd7 {[%clk 0:02:46.9]} 7. Qb3
{[%clk 0:02:56.7]} 7... Qc7 {[%clk 0:02:07.3]} 8. a4 {[%clk 0:02:53.6]} 8... Rb8
{[%clk 0:02:03.2]} 9. axb5 {[%clk 0:02:50]} 9... axb5 {[%clk 0:02:04.1]} 10. Qb4
{[%clk 0:02:37]} 10... e5 {[%clk 0:02:00.5]} 11. Qa5 {[%clk 0:02:36.4]} 11...
Qxa5 {[%clk 0:01:48.8]} 12. Rxa5 {[%clk 0:02:35.3]} 12... e4 {[%clk 0:01:31.7]}
13. Nd2 {[%clk 0:02:26.6]} 13... Be7 {[%clk 0:01:28]} 14. b4 {[%clk 0:02:26.3]}
14... O-O {[%clk 0:01:18]} 15. Be2 {[%clk 0:02:26]} 15... Bb7 {[%clk 0:01:11.9]}
16. O-O {[%clk 0:02:25.1]} 16... Ra8 {[%clk 0:01:11.4]} 17. Nb3 {[%clk
0:02:24.4]} 17... Bd8 {[%clk 0:01:08.4]} 18. Rxa8 {[%clk 0:02:19.7]} 18... Bxa8
{[%clk 0:01:09.3]} 19. Bb2 {[%clk 0:02:17.2]} 19... Nb8 {[%clk 0:00:48]} 20. Ra1
{[%clk 0:02:16.2]} 20... Bb7 {[%clk 0:00:47.8]} 21. h3 {[%clk 0:02:09.9]} 21...
Re8 {[%clk 0:00:44]} 22. Na5 {[%clk 0:02:05.8]} 22... Bc8 {[%clk 0:00:41.3]} 23.
g4 {[%clk 0:01:59.7]} 23... Re7 {[%clk 0:00:34.7]} 24. Nb3 {[%clk 0:01:53.6]}
24... Rb7 {[%clk 0:00:28.4]} 25. Ra8 {[%clk 0:01:51.5]} 25... Nfd7 {[%clk
0:00:27.2]} 26. f3 {[%clk 0:01:45.8]} 26... exf3 {[%clk 0:00:22.4]} 27. Bxf3
{[%clk 0:01:44.7]} 27... g6 {[%clk 0:00:15.5]} 28. e4 {[%clk 0:01:41.3]} 28...
dxe4 {[%clk 0:00:15]} 29. Nxe4 {[%clk 0:01:39.2]} 29... Rc7 {[%clk 0:00:14.8]}
30. Nd6 {[%clk 0:01:35.4]} 30... Bb7 {[%clk 0:00:14.5]} 31. Ra7 {[%clk
0:01:29.2]} 31... Ba6 {[%clk 0:00:09.1]} 32. Rxc7 {[%clk 0:01:22.8]} 32... Bxc7
{[%clk 0:00:10]} 33. Ne8 {[%clk 0:01:11.8]} 33... Bf4 {[%clk 0:00:08.6]} 34. d5
{[%clk 0:01:07.6]} 34... cxd5 {[%clk 0:00:07.9]} 35. Bxd5 {[%clk 0:01:07.1]}
35... Kf8 {[%clk 0:00:08.4]} 36. Nc7 {[%clk 0:01:04.4]} 36... Bxc7 {[%clk
0:00:08.1]} 37. Nd4 {[%clk 0:01:00.4]} 37... Be5 {[%clk 0:00:07.5]} 38. Bc3
{[%clk 0:00:58.5]} 38... Ke8 {[%clk 0:00:07.3]} 39. c6 {[%clk 0:00:56.5]} 39...
Nb6 {[%clk 0:00:06.7]} 40. Be4 {[%clk 0:00:46.9]} 40... Nc4 {[%clk 0:00:05.7]}
41. Kg2 {[%clk 0:00:40.1]} 41... f6 {[%clk 0:00:05.8]} 42. Kf3 {[%clk
0:00:39.7]} 42... Nd6 {[%clk 0:00:06.3]} 43. Bd5 {[%clk 0:00:38.5]} 43... Ke7
{[%clk 0:00:06.2]} 44. g5 {[%clk 0:00:37.6]} 44... fxg5 {[%clk 0:00:05.2]} 45.
Nxb5 {[%clk 0:00:37.6]} 45... Nxb5 {[%clk 0:00:03.7]} 46. Bxe5 {[%clk
0:00:37.4]} 46... Nxc6 {[%clk 0:00:04.2]} 47. Bxc6 {[%clk 0:00:37.1]} 47... Nd6
{[%clk 0:00:04.8]} 48. Bd5 {[%clk 0:00:34.6]} 48... Bb5 {[%clk 0:00:04.5]} 49.
Ke3 {[%clk 0:00:33.3]} 49... Bd7 {[%clk 0:00:05]} 50. Kd4 {[%clk 0:00:32.7]}
50... Bxh3 {[%clk 0:00:04.3]} 51. Kc5 {[%clk 0:00:31.7]} 51... Nc8 {[%clk
0:00:04.9]} 52. b5 {[%clk 0:00:31.1]} 52... Bf5 {[%clk 0:00:05.4]} 53. Bc6
{[%clk 0:00:28.8]} 53... g4 {[%clk 0:00:04.5]} 54. Bg3 {[%clk 0:00:27.5]} 54...
h5 {[%clk 0:00:04.6]} 55. b6 {[%clk 0:00:28.4]} 55... Nxb6 {[%clk 0:00:02.9]}
56. Kxb6 {[%clk 0:00:28.7]} 56... g5 {[%clk 0:00:03.6]} 57. Kc5 {[%clk
0:00:26.3]} 57... h4 {[%clk 0:00:04.1]} 58. Bd6+ {[%clk 0:00:26]} 58... Kf7
{[%clk 0:00:03.1]} 59. Bd5+ {[%clk 0:00:25.7]} 59... Be6 {[%clk 0:00:03.3]} 60.
Kd4 {[%clk 0:00:26.6]} 60... Bxd5 {[%clk 0:00:02.7]} 61. Kxd5 {[%clk 0:00:25.3]}
61... Kf6 {[%clk 0:00:03.3]} 62. Ke4 {[%clk 0:00:24.9]} 62... g3 {[%clk
0:00:02.4]} 63. Kf3 {[%clk 0:00:23.8]} 63... Kf5 {[%clk 0:00:02.5]} 64. Bxg3
{[%clk 0:00:22.2]} 64... hxg3 {[%clk 0:00:01.7]} 65. Kxg3 {[%clk 0:00:22.5]}
65... g4 {[%clk 0:00:02.5]} 66. Kg2 {[%clk 0:00:22.8]} 66... Kg5 {[%clk
0:00:03.1]} 67. Kg3 {[%clk 0:00:22.9]} 67... Kf5 {[%clk 0:00:03.7]} 68. Kg2
{[%clk 0:00:23.1]} 68... Kf4 {[%clk 0:00:04.5]} 69. Kf2 {[%clk 0:00:23]} 69...
g3+ {[%clk 0:00:05]} 70. Kg2 {[%clk 0:00:23.2]} 70... Kg4 {[%clk 0:00:05.3]} 71.
Kg1 {[%clk 0:00:23.3]} 71... Kh4 {[%clk 0:00:06]} 72. Kg2 {[%clk 0:00:23.4]}
72... Kg4 {[%clk 0:00:06.6]} 73. Kg1 {[%clk 0:00:23.6]} 73... Kf4 {[%clk
0:00:07.2]} 74. Kg2 {[%clk 0:00:23.4]} 74... Kg4 {[%clk 0:00:07.2]} 1/2-1/2

[Event "*** Titled Tuesday Blitz"]
[Site "Chess.com"]
[Date "2020.05.12"]
[Round "9"]
[White "Kezin_Roman"]
[Black "VerdeNotte"]
[Result "1-0"]
[WhiteElo "2809"]
[BlackElo "2873"]
[TimeControl "180+1"]
[EndTime "11:44:33 PDT"]
[Termination "Kezin_Roman won by resignation"]

1. d4 {[%clk 0:03:00.9]} 1... Nf6 {[%clk 0:02:59.8]} 2. c4 {[%clk 0:03:00.7]}
2... g6 {[%clk 0:02:59.7]} 3. Nc3 {[%clk 0:02:59.8]} 3... Bg7 {[%clk 0:03:00]}
4. e4 {[%clk 0:02:58.1]} 4... d6 {[%clk 0:03:00.3]} 5. Nf3 {[%clk 0:02:50.8]}
5... O-O {[%clk 0:02:59.9]} 6. h3 {[%clk 0:02:49.7]} 6... e5 {[%clk 0:02:53.7]}
7. d5 {[%clk 0:02:49.7]} 7... a5 {[%clk 0:02:49.3]} 8. Bg5 {[%clk 0:02:49]} 8...
Na6 {[%clk 0:02:47.5]} 9. g4 {[%clk 0:02:43.7]} 9... Qe8 {[%clk 0:02:45.9]} 10.
Nd2 {[%clk 0:02:44]} 10... Nd7 {[%clk 0:02:42.7]} 11. a3 {[%clk 0:02:44.4]}
11... Nb6 {[%clk 0:02:41.3]} 12. Be3 {[%clk 0:02:37.4]} 12... Bd7 {[%clk
0:02:34.8]} 13. Qc2 {[%clk 0:02:36.4]} 13... Nc5 {[%clk 0:02:29.7]} 14. Be2
{[%clk 0:02:33.6]} 14... Nba4 {[%clk 0:02:25.6]} 15. Nb5 {[%clk 0:02:26.2]}
15... Qb8 {[%clk 0:02:21.9]} 16. b3 {[%clk 0:02:17.2]} 16... Nb6 {[%clk
0:02:21.9]} 17. O-O {[%clk 0:02:17.2]} 17... f5 {[%clk 0:02:17.9]} 18. f3 {[%clk
0:02:17.4]} 18... Qd8 {[%clk 0:02:10]} 19. Kg2 {[%clk 0:02:12.8]} 19... Bf6
{[%clk 0:02:04.1]} 20. b4 {[%clk 0:02:08.1]} 20... axb4 {[%clk 0:01:49.7]} 21.
axb4 {[%clk 0:02:09]} 21... Rxa1 {[%clk 0:01:44.4]} 22. Rxa1 {[%clk 0:01:59.6]}
22... Na6 {[%clk 0:01:44.7]} 23. c5 {[%clk 0:01:57]} 23... Nxb4 {[%clk
0:01:14.8]} 24. Qb3 {[%clk 0:01:56]} 24... dxc5 {[%clk 0:01:11.7]} 25. Bxc5
{[%clk 0:01:52.5]} 25... Na6 {[%clk 0:01:09.7]} 26. d6+ {[%clk 0:01:42.6]} 26...
Rf7 {[%clk 0:00:52.4]} 27. dxc7 {[%clk 0:01:40.4]} 27... Nxc7 {[%clk 0:00:52.6]}
28. Nd6 {[%clk 0:01:24.8]} 28... Be6 {[%clk 0:00:42.3]} 29. Qxb6 {[%clk
0:01:24.2]} 29... Rd7 {[%clk 0:00:38.7]} 30. Bc4 {[%clk 0:01:23.6]} 30... Be7
{[%clk 0:00:29.3]} 31. Bxe6+ {[%clk 0:01:18.9]} 31... Nxe6 {[%clk 0:00:29.2]}
32. Qb3 {[%clk 0:00:43.5]} 32... Rxd6 {[%clk 0:00:16.9]} 33. Bxd6 {[%clk
0:00:43.7]} 33... Qxd6 {[%clk 0:00:17.8]} 34. exf5 {[%clk 0:00:39]} 34... gxf5
{[%clk 0:00:10.8]} 35. gxf5 {[%clk 0:00:39.9]} 35... Qxd2+ {[%clk 0:00:10.8]}
36. Kh1 {[%clk 0:00:40.3]} 36... Kf8 {[%clk 0:00:07.4]} 37. Qxe6 {[%clk
0:00:38]} 37... Qd3 {[%clk 0:00:07.2]} 38. Ra8+ {[%clk 0:00:36.3]} 38... Bd8
{[%clk 0:00:07.3]} 39. Qf6+ {[%clk 0:00:31.7]} 39... Ke8 {[%clk 0:00:07.8]} 40.
Qxe5+ {[%clk 0:00:32]} 40... Kf7 {[%clk 0:00:06.8]} 41. Qe6+ {[%clk 0:00:22.9]}
41... Kf8 {[%clk 0:00:07.2]} 42. Qh6+ {[%clk 0:00:15.2]} 42... Ke8 {[%clk
0:00:03.7]} 43. Qh5+ {[%clk 0:00:13.7]} 43... Kf8 {[%clk 0:00:02.3]} 44. Ra1
{[%clk 0:00:12.7]} 44... Qe2 {[%clk 0:00:01.9]} 45. Rg1 {[%clk 0:00:11.3]} 45...
Bf6 {[%clk 0:00:01.8]} 46. Qh6+ {[%clk 0:00:10.7]} 46... Ke7 {[%clk 0:00:02.3]}
47. Qf4 {[%clk 0:00:08.9]} 47... b5 {[%clk 0:00:01.6]} 48. Qe4+ {[%clk
0:00:09.1]} 48... Qxe4 {[%clk 0:00:01.3]} 49. fxe4 {[%clk 0:00:10]} 49... Kd6
{[%clk 0:00:02.1]} 50. Rb1 {[%clk 0:00:09.9]} 50... Ke5 {[%clk 0:00:02.6]} 51.
Rb4 {[%clk 0:00:07.5]} 51... Be7 {[%clk 0:00:02.7]} 52. Rxb5+ {[%clk 0:00:07.6]}
52... Kxe4 {[%clk 0:00:03.3]} 53. Kg2 {[%clk 0:00:08.3]} 53... Kf4 {[%clk
0:00:03.3]} 54. Rb7 {[%clk 0:00:05.1]} 54... Bf6 {[%clk 0:00:03.5]} 55. Rxh7
{[%clk 0:00:05.3]} 55... Kxf5 {[%clk 0:00:04.1]} 56. Rb7 {[%clk 0:00:05.9]}
56... Kf4 {[%clk 0:00:04]} 57. Rb5 {[%clk 0:00:06.8]} 57... Be5 {[%clk
0:00:03.5]} 58. Rb4+ {[%clk 0:00:06.8]} 58... Kf5 {[%clk 0:00:03.9]} 59. Ra4
{[%clk 0:00:07.7]} 59... Bf4 {[%clk 0:00:03.8]} 60. Kf3 {[%clk 0:00:08]} 60...
Bc7 {[%clk 0:00:04.1]} 61. h4 {[%clk 0:00:08.3]} 61... Kg6 {[%clk 0:00:04.5]}
62. Kg4 {[%clk 0:00:07.7]} 62... Kh6 {[%clk 0:00:04.1]} 63. Ra6+ {[%clk
0:00:08]} 63... Kg7 {[%clk 0:00:04.4]} 64. Ra7 {[%clk 0:00:07.8]} 64... Kg6
{[%clk 0:00:05]} 65. Rxc7 {[%clk 0:00:07.7]} 65... Kh6 {[%clk 0:00:05.9]} 66.
Rc6+ {[%clk 0:00:07.5]} 1-0